fUST/lending_fUST_20250819
["ID","MTS","AMOUNT","RATE_DAILY","PERIOD"]
[380200963,1755606674306,-572.78,0.00020273,2]
[380200964,1755606674316,-480.0,0.00020273,2]
[380200965,1755606674325,-480.0,0.00020273,2]
[380200966,1755606674334,-925.96,0.00020273,2]
[380200967,1755606674344,-403.61214263,0.00020273,2]
[380200968,1755606674357,-3696.94,0.00020273,2]
[380200969,1755606674367,-480.0,0.00020273,2]
[380200970,1755606674377,-480.0,0.00020273,2]
[380200971,1755606674386,-5536.72,0.00020273,2]
[380200972,1755606674396,-480.0,0.00020273,2]
[380200973,1755606674405,-480.0,0.00020273,2]
[380200974,1755606674414,-480.0,0.00020273,2]
[380200975,1755606674424,-668.52,0.00020273,2]
[380200976,1755606674434,-480.0,0.00020273,2]
[380200977,1755606674445,-1954.8,0.00020273,2]
[380200978,1755606674454,-441.93838535,0.00020273,2]
[380200979,1755606674464,-480.0,0.00020273,2]
[380200980,1755606674474,-625.13,0.00020273,2]
[380200981,1755606674484,-1385.74,0.00020273,2]
[380200982,1755606674493,-480.0,0.00020273,2]
[380200983,1755606674502,-460.0,0.00020273,2]
[380200984,1755606674512,-480.0,0.00020273,2]
[380200985,1755606674521,-349.5415376,0.00020273,2]
[380200986,1755606674530,-480.0,0.00020273,2]
[380200987,1755606674539,-480.0,0.00020273,2]
[380200988,1755606674548,-480.0,0.00020273,2]
[380200989,1755606674558,-958.56,0.00020273,2]
[380200990,1755606674567,-480.0,0.00020273,2]
[380200991,1755606674576,-480.0,0.00020273,2]
[380200992,1755606674585,-480.0,0.00020273,2]
[380200993,1755606674594,-480.0,0.00020273,2]
[380200994,1755606674605,-539.78,0.00020273,2]
[380200995,1755606674615,-439.17958988,0.00020273,2]
[380200996,1755606674624,-480.0,0.00020273,2]
[380200997,1755606674635,-151.0,0.00020273,2]
[380200998,1755606674647,-151.0,0.00020273,2]
[380200999,1755606674659,-480.0,0.00020273,2]
[380201000,1755606674671,-480.0,0.00020273,2]
[380201001,1755606674683,-480.0,0.00020273,2]
[380201002,1755606674694,-1597.5,0.00020273,2]
[380201003,1755606674705,-480.0,0.00020273,2]
[380201004,1755606674716,-480.0,0.00020273,2]
[380201005,1755606674728,-480.0,0.00020273,2]
[380201006,1755606674739,-2607.08,0.00020273,2]
[380201007,1755606674752,-2143.46,0.00020273,2]
[380201008,1755606674764,-1677.17,0.00020273,2]
[380201009,1755606674777,-480.0,0.00020273,2]
[380201010,1755606674789,-1373.1,0.00020273,2]
[380201011,1755606674801,-679.76,0.00020273,2]
[380201012,1755606674813,-480.0,0.00020273,2]
[380201013,1755606674824,-741.16,0.00020273,2]
[380201014,1755606674836,-480.0,0.00020273,2]
[380201015,1755606674847,-480.0,0.00020273,2]
[380201016,1755606674860,-480.0,0.00020273,2]
[380201017,1755606674871,-1287.57,0.00020273,2]
[380201018,1755606674882,-1078.73,0.00020273,2]
[380201019,1755606674893,-1427.51,0.00020273,2]
[380201020,1755606674905,-153.952636,0.00020273,2]
[380201021,1755606674917,-153.952636,0.00020273,2]
[380201022,1755606674927,-480.0,0.00020273,2]
[380201023,1755606674938,-153.952636,0.00020273,2]
[380201024,1755606674948,-153.952628,0.00020273,2]
[380201025,1755606674958,-356.542237,0.00020273,2]
[380201026,1755606674970,-356.542237,0.00020273,2]
[380201027,1755606674980,-1526.24,0.00020273,2]
[380201028,1755606674992,-772.12,0.00020273,2]
[380201029,1755606675004,-480.0,0.00020273,2]
[380201030,1755606675017,-480.0,0.00020273,2]
[380201031,1755606675029,-480.0,0.00020273,2]
[380201032,1755606675042,-356.542237,0.00020273,2]
[380201033,1755606675054,-356.54223349,0.00020273,2]
[380201034,1755606675065,-480.0,0.00020273,2]
[380201035,1755606675077,-708.0,0.00020273,2]
[380201036,1755606675087,-480.0,0.00020273,2]
[380201037,1755606675097,-480.0,0.00020273,2]
[380201038,1755606675109,-480.0,0.00020273,2]
[380201039,1755606675119,-423.72922322,0.00020273,2]
[380201040,1755606675130,-891.06,0.00020273,2]
[380201041,1755606675142,-480.0,0.00020273,2]
[380201042,1755606675155,-480.0,0.00020273,2]
[380201043,1755606675166,-480.0,0.00020273,2]
[380201044,1755606675181,-480.0,0.00020273,2]
[380201045,1755606675191,-480.0,0.00020273,2]
[380201046,1755606675202,-480.0,0.00020273,2]
[380201047,1755606675213,-480.0,0.00020273,2]
[380201048,1755606675224,-480.0,0.00020273,2]
[380201049,1755606675237,-3354.34,0.00020273,2]
[380201050,1755606675248,-480.0,0.00020273,2]
[380201051,1755606675259,-480.0,0.00020273,2]
[380201052,1755606675269,-480.0,0.00020273,2]
[380201053,1755606675280,-990.79,0.00020273,2]
[380201054,1755606675290,-480.0,0.00020273,2]
[380201055,1755606675301,-480.0,0.00020273,2]
[380201056,1755606675312,-480.0,0.00020273,2]
[380201057,1755606675322,-480.0,0.00020273,2]
[380201058,1755606675333,-480.0,0.00020273,2]
[380201059,1755606675344,-480.0,0.00020273,2]
[380201060,1755606675355,-1149.59,0.00020273,2]
[380201061,1755606675365,-500.0,0.00020273,2]
[380201062,1755606675377,-480.0,0.00020273,2]
[380201063,1755606675387,-480.0,0.00020273,2]
[380201064,1755606675398,-480.0,0.00020273,2]
[380201065,1755606675409,-480.0,0.00020273,2]
[380201066,1755606675420,-2624.4,0.00020273,2]
[380201067,1755606675431,-9959.75,0.00020273,2]
[380201068,1755606675441,-480.0,0.00020273,2]
[380201069,1755606675452,-322.81528134,0.00020273,2]
[380201070,1755606675463,-480.0,0.00020273,2]
[380201071,1755606675474,-151.0,0.00020273,2]
[380201072,1755606675484,-615.12,0.00020273,2]
[380201073,1755606675494,-151.0,0.00020273,2]
[380201074,1755606675505,-1142.25,0.00020273,2]
[380201075,1755606675516,-480.0,0.00020273,2]
[380201076,1755606675526,-480.0,0.00020273,2]
[380201077,1755606675537,-480.0,0.00020273,2]
[380201078,1755606675548,-2872.66,0.00020273,2]
[380201079,1755606675559,-482.95236684,0.00020273,2]
[380201080,1755606675569,-1200.41,0.00020273,2]
[380201081,1755606675581,-480.0,0.00020273,2]
[380201082,1755606675592,-9859.29,0.00020273,2]
[380201083,1755606675605,-480.0,0.00020273,2]
[380201084,1755606675615,-480.0,0.00020273,2]
[380201085,1755606675628,-1169.86,0.00020273,2]
[380201086,1755606675639,-546.28,0.00020273,2]
[380201087,1755606675650,-1028.3,0.00020273,2]
[380201088,1755606675660,-157.908758,0.00020273,2]
[380201089,1755606675671,-157.908758,0.00020273,2]
[380201090,1755606675682,-159.43811611,0.00020274,2]
[380201091,1755606675693,-151.0,0.00020274,2]
[380201092,1755606675704,-151.0,0.00020274,2]
[380201093,1755606675714,-151.0,0.00020274,2]
[380201094,1755606675724,-500.0,0.00020274,2]
[380201095,1755606675736,-151.0,0.00020274,2]
[380201096,1755606675746,-151.0,0.00020274,2]
[380201097,1755606675756,-151.0,0.00020274,2]
[380201098,1755606675767,-151.0,0.00020274,2]
[380201099,1755606675777,-151.0,0.00020274,2]
[380201100,1755606675788,-637.0,0.00020274,2]
[380201101,1755606675798,-500.0,0.00020274,2]
[380201102,1755606675809,-500.0,0.00020274,2]
[380201103,1755606675819,-151.0,0.00020274,2]
[380201104,1755606675830,-151.0,0.00020274,2]
[380201105,1755606675840,-151.0,0.00020274,2]
[380201106,1755606675851,-151.0,0.00020274,2]
[380201107,1755606675863,-151.0,0.00020274,2]
[380201108,1755606675874,-199.16358068,0.00020274,2]
[380201109,1755606675885,-151.0,0.00020274,2]
[380201110,1755606675895,-151.0,0.00020274,2]
[380201111,1755606675906,-500.0,0.00020274,2]
[380201112,1755606675916,-151.0,0.00020274,2]
[380201113,1755606675927,-151.0,0.00020274,2]
[380201114,1755606675938,-622.02115028,0.00020274,2]
[380201115,1755606675948,-151.0,0.00020274,2]
[380201116,1755606675959,-500.0,0.00020274,2]
[380201117,1755606675970,-151.0,0.000203,4]
[380201118,1755606675981,-5584.57184192,0.00020313,2]
[380201119,1755606675992,-500.0,0.00020321,2]
[380201120,1755606676002,-500.0,0.00020321,2]
[380201121,1755606676012,-501.09034706,0.00020321,2]
[380201122,1755606676023,-1000.0,0.00020321,2]
[380201123,1755606676034,-1000.0,0.00020321,2]
[380201124,1755606676045,-536.04,0.0002036,3]
[380201125,1755606676055,-168.0,0.00020382,2]
[380201126,1755606676066,-151.0,0.000204,4]
[380201127,1755606676076,-256.975659,0.000204,2]
[380201128,1755606676087,-151.0,0.000204,2]
[380201129,1755606676098,-250.0,0.000204,2]
[380201130,1755606676110,-150.0,0.000204,2]
[380201131,1755606676120,-150.0,0.000204,2]
[380201132,1755606676132,-156.029089,0.00020405,14]
[380201133,1755606676142,-670.39,0.00020421,2]
[380201134,1755606676154,-972.0,0.0002044,2]
[380201135,1755606676165,-408.0,0.0002044,2]
[380201136,1755606676178,-2153.0,0.0002044,2]
[380201137,1755606676188,-637.0,0.0002044,2]
[380201138,1755606676199,-326.0,0.00020442,2]
[380201139,1755606676210,-326.0,0.00020442,2]
[380201140,1755606676222,-326.0,0.00020442,2]
[380201141,1755606676233,-326.0,0.00020442,2]
[380201142,1755606676243,-326.0,0.00020442,2]
[380201143,1755606676254,-326.0,0.00020442,2]
[380201144,1755606676265,-326.0,0.00020442,2]
[380201145,1755606676275,-326.0,0.00020442,2]
[380201146,1755606676286,-326.0,0.00020442,2]
[380201147,1755606676297,-166.0,0.00020442,2]
[380201148,1755606676308,-166.0,0.00020442,2]
[380201149,1755606676319,-159.43811611,0.00020493,2]
[380201150,1755606676330,-153.0,0.00020493,2]
[380201151,1755606676341,-160.842982,0.00020493,2]
[380201152,1755606676353,-157.4194852,0.00020493,2]
[380201153,1755606676365,-306.0,0.00020493,2]
[380201154,1755606676375,-293.8943201,0.00020493,2]
[380201155,1755606676386,-160.842982,0.00020493,2]
[380201156,1755606676397,-293.8943201,0.00020493,2]
[380201157,1755606676583,-153.0,0.00020493,2]
[380201158,1755606676606,-160.842982,0.00020493,2]
[380201159,1755606676616,-580.8939941,0.00020493,2]
[380201160,1755606676627,-153.0,0.00020493,2]
[380201161,1755606676646,-293.8943201,0.00020493,2]
[380201162,1755606676666,-580.8939941,0.00020493,2]
[380201163,1755606676676,-160.842982,0.00020493,2]
[380201164,1755606676685,-580.8939941,0.00020493,2]
[380201165,1755606676694,-580.8939941,0.00020493,2]
[380201166,1755606676704,-600.0,0.00020504,2]
[380201167,1755606676714,-386.0,0.00020516,2]
[380201168,1755606676724,-420.0,0.00020516,2]
[380201169,1755606676733,-420.0,0.00020516,2]
[380201170,1755606676742,-1680.0,0.00020518,2]
[380201171,1755606676751,-894.23052098,0.00020519,2]
[380201172,1755606676761,-1000.0,0.00020521,2]
[380201173,1755606676770,-1000.0,0.00020521,2]
[380201174,1755606676779,-1000.81789606,0.00020521,2]
[380201175,1755606676789,-1044.99615329,0.00020521,2]
[380201176,1755606676798,-1000.0,0.00020521,2]
[380201177,1755606676808,-1002.60512625,0.00020521,2]
[380201178,1755606676817,-1004.47468347,0.00020521,2]
[380201179,1755606676826,-207.0,0.0002053,2]
[380201180,1755606676835,-168.0,0.00020541,2]
[380201181,1755606676845,-480.0,0.00020547,2]
[380201182,1755606676855,-420.0,0.00020547,2]
[380201183,1755606676864,-480.0,0.00020547,2]
[380201184,1755606676875,-480.0,0.00020547,2]
[380201185,1755606676886,-480.0,0.00020547,2]
[380201186,1755606676895,-448.0897792,0.00020547,2]
[380201187,1755606676905,-480.0,0.00020547,2]
[380201188,1755606676915,-480.0,0.00020547,2]
[380201189,1755606676924,-480.0,0.00020547,2]
[380201190,1755606676934,-480.0,0.00020547,2]
[380201191,1755606676943,-480.0,0.00020547,2]
[380201192,1755606676953,-151.0,0.00020547,2]
[380201193,1755606676962,-420.23096821,0.00020547,2]
[380201194,1755606676972,-480.0,0.00020547,2]
[380201195,1755606676981,-480.0,0.00020547,2]
[380201196,1755606676991,-480.0,0.00020547,2]
[380201197,1755606677000,-480.0,0.00020547,2]
[380201198,1755606677010,-422.27916544,0.00020547,2]
[380201199,1755606677019,-480.0,0.00020547,2]
[380201200,1755606677028,-480.0,0.00020547,2]
[380201201,1755606677038,-480.0,0.00020547,2]
[380201202,1755606677047,-480.0,0.00020547,2]
[380201203,1755606677057,-480.0,0.00020547,2]
[380201204,1755606677066,-480.0,0.00020547,2]
[380201205,1755606677075,-480.0,0.00020547,2]
[380201206,1755606677084,-151.0,0.00020547,2]
[380201207,1755606677094,-480.0,0.00020547,2]
[380201208,1755606677106,-480.0,0.00020547,2]
[380201209,1755606677115,-480.0,0.00020547,2]
[380201210,1755606677125,-480.0,0.00020547,2]
[380201211,1755606677134,-480.0,0.00020547,2]
[380201212,1755606677143,-480.0,0.00020547,2]
[380201213,1755606677153,-480.0,0.00020547,2]
[380201214,1755606677162,-445.12412417,0.00020547,2]
[380201215,1755606677175,-480.0,0.00020547,2]
[380201216,1755606677185,-480.0,0.00020547,2]
[380201217,1755606677194,-434.99511851,0.00020547,2]
[380201218,1755606677204,-384.90635947,0.00020547,2]
[380201219,1755606677215,-480.0,0.00020547,2]
[380201220,1755606677224,-480.0,0.00020547,2]
[380201221,1755606677233,-480.0,0.00020547,2]
[380201222,1755606677244,-486.36,0.00020547,2]
[380201223,1755606677253,-364.16853664,0.00020547,2]
[380201224,1755606677263,-480.0,0.00020547,2]
[380201225,1755606677272,-480.0,0.00020547,2]
[380201226,1755606677282,-480.0,0.00020547,2]
[380201227,1755606677292,-480.0,0.00020547,2]
[380201228,1755606677302,-480.0,0.00020547,2]
[380201229,1755606677311,-540.09,0.00020547,2]
[380201230,1755606677321,-480.0,0.00020547,2]
[380201231,1755606677332,-480.0,0.00020547,2]
[380201232,1755606677342,-480.0,0.00020547,2]
[380201233,1755606677352,-260.0,0.00020547,2]
[380201234,1755606677364,-480.0,0.00020547,2]
[380201235,1755606677373,-480.0,0.00020547,2]
[380201236,1755606677383,-480.0,0.00020547,2]
[380201237,1755606677392,-864.15,0.00020547,2]
[380201238,1755606677402,-480.0,0.00020547,2]
[380201239,1755606677411,-480.0,0.00020547,2]
[380201240,1755606677420,-480.0,0.00020547,2]
[380201241,1755606677430,-480.0,0.00020547,2]
[380201242,1755606677439,-480.0,0.00020547,2]
[380201243,1755606677448,-480.0,0.00020547,2]
[380201244,1755606677457,-480.0,0.00020547,2]
[380201245,1755606677467,-480.0,0.00020547,2]
[380201246,1755606677476,-480.0,0.00020547,2]
[380201247,1755606677486,-508.47,0.00020547,2]
[380201248,1755606677495,-153.986216,0.00020547,2]
[380201249,1755606677504,-242.482377,0.00020547,2]
[380201250,1755606677514,-242.482377,0.00020547,2]
[380201251,1755606677524,-447.7214975,0.00020547,2]
[380201252,1755606677534,-480.0,0.00020547,2]
[380201253,1755606677544,-515.79,0.00020547,2]
[380201254,1755606677555,-548.7105579,0.00020547,2]
[380201255,1755606677564,-443.25401158,0.00020547,2]
[380201256,1755606677573,-480.0,0.00020547,2]
[380201257,1755606677582,-560.19,0.00020547,2]
[380201258,1755606677591,-480.0,0.00020547,2]
[380201259,1755606677600,-151.0,0.00020547,2]
[380201260,1755606677612,-480.0,0.00020547,2]
[380201261,1755606677621,-201.964818,0.00020547,2]
[380201262,1755606677630,-480.0,0.00020547,2]
[380201263,1755606677639,-480.0,0.00020547,2]
[380201264,1755606677648,-480.0,0.00020547,2]
[380201265,1755606677658,-480.0,0.00020547,2]
[380201266,1755606677667,-480.0,0.00020547,2]
[380201267,1755606677676,-301.51406855,0.00020547,2]
[380201268,1755606677685,-480.0,0.00020547,2]
[380201269,1755606677695,-480.0,0.00020547,2]
[380201270,1755606677704,-480.0,0.00020547,2]
[380201271,1755606677713,-480.0,0.00020547,2]
[380201272,1755606677723,-480.0,0.00020547,2]
[380201273,1755606677732,-308.154346,0.00020547,2]
[380201274,1755606677741,-308.154346,0.00020547,2]
[380201275,1755606677751,-569.48178612,0.00020547,2]
[380201276,1755606677760,-480.0,0.00020547,2]
[380201277,1755606677769,-480.0,0.00020547,2]
[380201278,1755606677779,-480.0,0.00020547,2]
[380201279,1755606677788,-480.0,0.00020547,2]
[380201280,1755606677798,-1065.94,0.00020547,2]
[380201281,1755606677807,-480.0,0.00020547,2]
[380201282,1755606677817,-243.887521,0.00020547,2]
[380201283,1755606677826,-243.887521,0.00020547,2]
[380201284,1755606677835,-480.0,0.00020547,2]
[380201285,1755606677844,-1735.33,0.00020547,2]
[380201286,1755606677854,-366.49532951,0.00020547,2]
[380201287,1755606677864,-480.0,0.00020547,2]
[380201288,1755606677873,-930.92,0.00020547,2]
[380201289,1755606677883,-480.0,0.00020547,2]
[380201290,1755606677893,-151.0,0.00020547,2]
[380201291,1755606677902,-480.0,0.00020547,2]
[380201292,1755606677913,-480.0,0.00020547,2]
[380201293,1755606677923,-480.0,0.00020547,2]
[380201294,1755606677932,-480.0,0.00020547,2]
[380201295,1755606677941,-480.0,0.00020547,2]
[380201296,1755606677950,-480.0,0.00020547,2]
[380201297,1755606677959,-480.0,0.00020547,2]
[380201298,1755606677968,-728.14,0.00020547,2]
[380201299,1755606677977,-151.0,0.00020547,2]
[380201300,1755606677987,-151.0,0.00020547,2]
[380201301,1755606677996,-480.0,0.00020547,2]
[380201302,1755606678005,-480.0,0.00020547,2]
[380201303,1755606678014,-480.0,0.00020547,2]
[380201304,1755606678023,-480.0,0.00020547,2]
[380201305,1755606678032,-480.0,0.00020547,2]
[380201306,1755606678041,-480.0,0.00020547,2]
[380201307,1755606678051,-716.75,0.00020547,2]
[380201308,1755606678060,-151.0,0.00020547,2]
[380201309,1755606678069,-151.0,0.00020547,2]
[380201310,1755606678079,-480.0,0.00020547,2]
[380201311,1755606678088,-219.140018,0.00020547,2]
[380201312,1755606678097,-480.0,0.00020547,2]
[380201313,1755606678107,-462.25553636,0.00020547,2]
[380201314,1755606678116,-480.0,0.00020547,2]
[380201315,1755606678125,-462.90263136,0.00020547,2]
[380201316,1755606678135,-480.0,0.00020547,2]
[380201317,1755606678144,-480.0,0.00020547,2]
[380201318,1755606678154,-480.0,0.00020547,2]
[380201319,1755606678164,-480.0,0.00020547,2]
[380201320,1755606678177,-480.0,0.00020547,2]
[380201321,1755606678187,-480.0,0.00020547,2]
[380201322,1755606678196,-443.20817639,0.00020547,2]
[380201323,1755606678205,-480.0,0.00020547,2]
[380201324,1755606678215,-480.0,0.00020547,2]
[380201325,1755606678224,-480.0,0.00020547,2]
[380201326,1755606678233,-480.0,0.00020547,2]
[380201327,1755606678243,-480.0,0.00020547,2]
[380201328,1755606678253,-740.67,0.00020547,2]
[380201329,1755606678263,-480.0,0.00020547,2]
[380201330,1755606678272,-1891.98753101,0.00020547,2]
[380201331,1755606782213,10000.0,0.00018315,2]
[380201332,1755606792841,629.999396,0.00013699,2]
[380201333,1755606794742,-345.31716415,0.00018586,2]
[380201334,1755606797070,-154.68283585,0.00018586,2]
[380201335,1755606797092,-53.35908912,0.000189,2]
[380201336,1755606798895,-96.64091088,0.000189,2]
[380201337,1755606798917,-215.49206425,0.00019077,2]
[380201338,1755606804275,-382.82525639,0.00019077,2]
[380201339,1755606807615,-270.18199684,0.00019077,2]
[380201340,1755606810005,-253.03501115,0.00019077,2]
[380201341,1755606812090,-78.46567137,0.00019077,2]
[380201342,1755606812121,-74.90688457,0.00019078,2]
[380201343,1755606814842,-224.84905329,0.00019078,2]
[380201344,1755606818299,-334.6202925,0.00019078,2]
[380201345,1755606821337,-219.98778268,0.00019078,2]
[380201346,1755606824763,-395.6458207,0.00019078,2]
[380201347,1755606828467,-218.28518403,0.00019078,2]
[380201348,1755606831505,-155.22210208,0.00019078,2]
[380201349,1755606835404,-300.0,0.00019078,2]
[380201350,1755606837984,-291.16194057,0.00019078,2]
[380201351,1755606840530,-208.83805943,0.00019078,2]
[380201352,1755606843110,-288.09008906,0.00019078,2]
[380201353,1755606848932,-166.33485235,0.00019078,2]
[380201354,1755606853369,-228.77957724,0.00019078,2]
[380201355,1755606855793,-254.76963661,0.00019078,2]
[380201356,1755606860032,-201.04765892,0.00019078,2]
[380201357,1755606862960,-480.44278651,0.00019078,2]
[380201358,1755606867447,-47.68042454,0.00019078,2]
[380201359,1755606867469,-300.0,0.00019177,2]
[380201360,1755606867492,-63.06047815,0.00019178,2]
[380201361,1755606872544,-195.60715236,0.00019178,2]
[380201362,1755606873524,2970.88,0.00028767,120]
[380201363,1755606875124,-168.03128815,0.00019178,2]
[380201364,1755606877617,-198.66499897,0.00019177,2]
[380201365,1755606895738,-192.92989737,0.00019078,2]
[380201366,1755606898993,-162.85564392,0.00019078,2]
[380201367,1755606899015,-121.37539966,0.00019177,2]
[380201368,1755606902395,-289.84589941,0.00019176,2]
[380201369,1755606905356,-10.15410059,0.00019176,2]
[380201370,1755606905380,-154.52218012,0.00019176,2]
[380201371,1755606908994,-145.47781988,0.00019176,2]
[380201372,1755606909016,-25.10680432,0.00019176,2]
[380201373,1755606911907,-270.70301534,0.00019176,2]
[380201374,1755606916470,-4.19018034,0.00019176,2]
[380201375,1755606916491,-300.0,0.00019176,2]
[380201376,1755606916514,-81.36693402,0.00019176,2]
[380201377,1755606919004,-300.0,0.00019176,2]
[380201378,1755606922614,-152.3548301,0.00018984,2]
[380201379,1755606922635,-14.05147682,0.00019176,2]
[380201380,1755606926642,-190.93571439,0.00019176,2]
[380201381,1755606929146,-217.00623575,0.00019176,2]
[380201382,1755606932435,-297.39334628,0.00019176,2]
[380201383,1755606934877,-99.24629274,0.00019176,2]
[380201384,1755606934899,-126.38886231,0.00019177,2]
[380201385,1755606937147,-53.57073906,0.00019177,2]
[380201386,1755606937168,-98.3338228,0.00019177,2]
[380201387,1755606938973,-151.90017713,0.00019177,2]
[380201388,1755606940921,-61.82861432,0.00019177,2]
[380201389,1755606940944,-203.06274016,0.00019177,2]
[380201390,1755606945485,-296.93725984,0.00019177,2]
[380201391,1755606945509,-1.70482712,0.00019177,2]
[380201392,1755606947845,-234.63103739,0.00019177,2]
[380201393,1755606951810,-27.34583107,0.00019177,2]
[380201394,1755606951831,-197.87858353,0.00019177,2]
[380201395,1755606951852,-12.65325537,0.00019177,2]
[380201396,1755606955025,-263.74316811,0.00019177,2]
[380201397,1755606958056,-288.44376158,0.00019177,2]
[380201398,1755606958080,-255.17850096,0.00019177,2]
[380201399,1755606962540,-151.90456186,0.00018985,2]
[380201400,1755606966480,-172.98712296,0.00018985,2]
[380201401,1755606971170,-444.60727256,0.00018719,2]
[380201402,1755606976679,-252.51949924,0.00018719,2]
[380201403,1755606979822,-185.67,0.00018719,2]
[380201404,1755606983757,-165.58231148,0.00018719,2]
[380201405,1755606992140,-163.912698,0.00018719,2]
[380201406,1755606995293,-568.28825603,0.00018719,2]
[380201407,1755607000357,-244.1093505,0.00018719,2]
[380201409,1755607002916,-175.82993515,0.00018719,2]
[380201410,1755607006784,-151.15445482,0.00018719,2]
[380201411,1755607010520,-166.0,0.00018718,2]
[380201412,1755607012410,-298.39935397,0.00018718,2]
[380201413,1755607014303,-454.96180776,0.00018718,2]
[380201414,1755607016822,-230.33800327,0.00018718,2]
[380201415,1755607019526,-50.300835,0.00018718,2]
[380201416,1755607019548,-163.3015328,0.00018719,2]
[380201417,1755607023239,-217.71,0.00018718,2]
[380201418,1755607027569,-82.29,0.00018718,2]
[380201419,1755607027592,-93.19223957,0.00018719,2]
[380201420,1755607030137,-154.08709537,0.00018719,2]
[380201421,1755607032954,-349.90341106,0.00018719,2]
[380201422,1755607034735,-197.59942239,0.00018719,2]
[380201423,1755607038714,-158.8399593,0.00018719,2]
[380201424,1755607041112,-322.46776043,0.00018719,2]
[380201425,1755607045368,-222.73632228,0.00018719,2]
[380201426,1755607047718,-165.026036,0.00018719,2]
[380201427,1755607050398,-316.77192351,0.00018719,2]
[380201428,1755607054163,-162.8967231,0.00018719,2]
[380201429,1755607056933,-226.49401365,0.00018718,2]
[380201430,1755607060444,-190.54897051,0.00018718,2]
[380201431,1755607063675,-82.95701584,0.00018718,2]
[380201432,1755607063696,-82.06902016,0.00018718,2]
[380201433,1755607067776,-116.59597881,0.00018718,2]
[380201434,1755607067802,-72.47721431,0.00018718,2]
[380201435,1755607070585,-292.15306825,0.00018718,2]
[380201436,1755607075759,-135.36971744,0.00018718,2]
[380201437,1755607075784,-98.49158287,0.00018718,2]
[380201438,1755607081362,-92.44413152,0.00018718,2]
[380201439,1755607081387,-137.08499885,0.00018718,2]
[380201440,1755607085723,-200.44282062,0.00018717,2]
[380201441,1755607088158,-99.55717938,0.00018717,2]
[380201442,1755607088184,-172.74858224,0.00018718,2]
[380201443,1755607097862,-180.51812132,0.00018618,2]
[380201444,1755607097884,-103.64416441,0.00018685,2]
[380201445,1755607102707,-76.8739569,0.00018685,2]
[380201446,1755607102728,-190.16641891,0.00018718,2]
[380201447,1755607102751,-69.87459689,0.00018718,2]
[380201448,1755607105742,-236.02249694,0.00018718,2]
[380201449,1755607108422,-165.35138601,0.00018718,2]
[380201450,1755607109362,1000.0,0.00017965,2]
[380201451,1755607111641,-28.75152016,0.00018718,2]
[380201452,1755607111664,-301.99024899,0.00018718,2]
[380201453,1755607115202,-147.84701453,0.00018718,2]
[380201454,1755607115225,-59.06815813,0.00018718,2]
[380201455,1755607119054,-263.54625417,0.00018652,2]
[380201457,1755607122367,-236.30685722,0.00018652,2]
[380201458,1755607124432,-179.3206256,0.00018652,2]
[380201459,1755607126001,-192.94,0.00018652,2]
[380201460,1755607128585,-249.11963327,0.00018652,2]
[380201461,1755607132802,-157.94036673,0.00018652,2]
[380201462,1755607136167,-150.93161065,0.00018618,2]
[380201463,1755607136189,-49.06838935,0.00018652,2]
[380201464,1755607140753,-244.61316998,0.00018652,2]